Workbook

Sheet Лист1
A4: Ф И О | P4: =MAX(R6:R8) -> 2800 | T4: =MAX(T6:T8) -> 110000 | X4: СУММА | Y4: Место
B5: Б | C5: Ц | D5: С | E5: итог | F5: Ск | G5: К | H5: КК | I5: Ск | J5: К | K5: КК | L5: Ск | M5: К | N5: КК | O5: перед | P5: 1 поп | Q5: 2 поп | R5: Лучш. | S5: очков | T5: 1 поп | U5: 2 поп | V5: Лучш | W5: очков
A6: Петров | B6: 210 | C6: 200 | D6: 120 | E6: =B6+C6+D6 -> 530 | F6: 120 | G6: 1 | H6: 1.3 | I6: 110 | J6: 1 | K6: 1.3 | L6: 120 | M6: 1 | N6: 1.3 | O6: =(F6*G6*H6)+(I6*J6*K6)+(L6*M6*N6) -> 455 | P6: 1800 | Q6: 2000 | R6: =MAX(P6:Q6) -> 2000 | S6: =(R6*100)/$P$4 -> 71.42857143 | T6: 48000 | U6: 44000 | V6: =MAX(T6:U6) -> 48000 | W6: =(V6*100)/$T$4 -> 43.63636364 | X6: =E6+O6+S6+W6 -> 1100.064935 | Y6: 1
A7: Сидоров | B7: 180 | C7: 180 | D7: 130 | E7: =B7+C7+D7 -> 490 | F7: 150 | G7: 0.95 | H7: 1 | I7: 150 | J7: 0.95 | K7: 1 | L7: 120 | M7: 0.95 | N7: 1 | O7: =(F7*G7*H7)+(I7*J7*K7)+(L7*M7*N7) -> 399 | P7: 2800 | Q7: 1800 | R7: =MAX(P7:Q7) -> 2800 | S7: =(R7*100)/$P$4 -> 100 | T7: 110000 | U7: 90500 | V7: =MAX(T7:U7) -> 110000 | W7: =(V7*100)/$T$4 -> 100 | X7: =E7+O7+S7+W7 -> 1089 | Y7: 2
A8: Иванов | B8: 200 | C8: 190 | D8: 130 | E8: =B8+C8+D8 -> 520 | F8: 180 | G8: 0.8 | H8: 1 | I8: 120 | J8: 0.8 | K8: 1 | L8: 110 | M8: 0.8 | N8: 1 | O8: =(F8*G8*H8)+(I8*J8*K8)+(L8*M8*N8) -> 328 | P8: 2120 | Q8: 2400 | R8: =MAX(P8:Q8) -> 2400 | S8: =(R8*100)/$P$4 -> 85.71428571 | T8: 60230 | U8: 80200 | V8: =MAX(T8:U8) -> 80200 | W8: =(V8*100)/$T$4 -> 72.90909091 | X8: =E8+O8+S8+W8 -> 1006.623377 | Y8: 3
Y9: 4
Y10: 5
Y11: 6
Y12: 7

Sheet Лист2
P4: =MAX(R6:R8) -> 2800 | T4: =MAX(T6:T8) -> 110000 | X4: СУММА | Y4: Место
B5: Б | C5: Ц | D5: С | E5: итог | F5: Ск | G5: К | H5: КК | I5: Ск | J5: К | K5: КК | L5: Ск | M5: К | N5: КК | O5: перед | P5: 1 поп | Q5: 2 поп | R5: Лучш. | S5: очков | T5: 1 поп | U5: 2 поп | V5: Лучш | W5: очков
A6: Петрова | B6: 210 | C6: 200 | D6: 120 | E6: =B6+C6+D6 -> 530 | F6: 120 | G6: 1 | H6: 1.3 | I6: 110 | J6: 1 | K6: 1.3 | L6: 120 | M6: 1 | N6: 1.3 | O6: =(F6*G6*H6)+(I6*J6*K6)+(L6*M6*N6) -> 455 | P6: 1800 | Q6: 2000 | R6: =MAX(P6:Q6) -> 2000 | S6: =(R6*100)/$P$4 -> 71.42857143 | T6: 48000 | U6: 44000 | V6: =MAX(T6:U6) -> 48000 | W6: =(V6*100)/$T$4 -> 43.63636364 | X6: =E6+O6+S6+W6 -> 1100.064935 | Y6: 1
A7: Сидорова | B7: 180 | C7: 180 | D7: 130 | E7: =B7+C7+D7 -> 490 | F7: 150 | G7: 0.95 | H7: 1 | I7: 150 | J7: 0.95 | K7: 1 | L7: 120 | M7: 0.95 | N7: 1 | O7: =(F7*G7*H7)+(I7*J7*K7)+(L7*M7*N7) -> 399 | P7: 2800 | Q7: 1800 | R7: =MAX(P7:Q7) -> 2800 | S7: =(R7*100)/$P$4 -> 100 | T7: 110000 | U7: 90500 | V7: =MAX(T7:U7) -> 110000 | W7: =(V7*100)/$T$4 -> 100 | X7: =E7+O7+S7+W7 -> 1089 | Y7: 2
A8: Иванова | B8: 200 | C8: 190 | D8: 130 | E8: =B8+C8+D8 -> 520 | F8: 180 | G8: 0.8 | H8: 1 | I8: 120 | J8: 0.8 | K8: 1 | L8: 110 | M8: 0.8 | N8: 1 | O8: =(F8*G8*H8)+(I8*J8*K8)+(L8*M8*N8) -> 328 | P8: 2120 | Q8: 2400 | R8: =MAX(P8:Q8) -> 2400 | S8: =(R8*100)/$P$4 -> 85.71428571 | T8: 60230 | U8: 80200 | V8: =MAX(T8:U8) -> 80200 | W8: =(V8*100)/$T$4 -> 72.90909091 | X8: =E8+O8+S8+W8 -> 1006.623377 | Y8: 3

Sheet Лист3
P4: =MAX(R6:R8) -> 2800 | Q4: Лучший результ. | T4: =MAX(T6:T8) -> 110000 | X4: СУММА | Y4: Место
B5: Б | C5: Ц | D5: С | E5: итог | F5: Ск | G5: К | H5: КК | I5: Ск | J5: К | K5: КК | L5: Ск | M5: К | N5: КК | O5: перед | P5: 1 поп | Q5: 2 поп | R5: Лучш. | S5: очков | T5: 1 поп | U5: 2 поп | V5: Лучш | W5: очков
A6: Иванов | B6: 200 | C6: 190 | D6: 130 | E6: =B6+C6+D6 -> 520 | F6: 180 | G6: 0.8 | H6: 1 | I6: 120 | J6: 0.8 | K6: 1 | L6: 110 | M6: 0.8 | N6: 1 | O6: =(F6*G6*H6)+(I6*J6*K6)+(L6*M6*N6) -> 328 | P6: 2120 | Q6: 2400 | R6: =MAX(P6:Q6) -> 2400 | S6: =(R6*100)/$P$4 -> 85.71428571 | T6: 60230 | U6: 80200 | V6: =MAX(T6:U6) -> 80200 | W6: =(V6*100)/$T$4 -> 72.90909091 | X6: =E6+O6+S6+W6 -> 1006.623377 | Y6: 1
A7: Сидоров | B7: 180 | C7: 180 | D7: 130 | E7: =B7+C7+D7 -> 490 | F7: 150 | G7: 0.95 | H7: 1 | I7: 150 | J7: 0.95 | K7: 1 | L7: 120 | M7: 0.95 | N7: 1 | O7: =(F7*G7*H7)+(I7*J7*K7)+(L7*M7*N7) -> 399 | P7: 2800 | Q7: 1800 | R7: =MAX(P7:Q7) -> 2800 | S7: =(R7*100)/$P$4 -> 100 | T7: 110000 | U7: 90500 | V7: =MAX(T7:U7) -> 110000 | W7: =(V7*100)/$T$4 -> 100 | X7: =E7+O7+S7+W7 -> 1089 | Y7: 2
A8: Петров | B8: 210 | C8: 200 | D8: 120 | E8: =B8+C8+D8 -> 530 | F8: 120 | G8: 1 | H8: 1.3 | I8: 110 | J8: 1 | K8: 1.3 | L8: 120 | M8: 1 | N8: 1.3 | O8: =(F8*G8*H8)+(I8*J8*K8)+(L8*M8*N8) -> 455 | P8: 1800 | Q8: 2000 | R8: =MAX(P8:Q8) -> 2000 | S8: =(R8*100)/$P$4 -> 71.42857143 | T8: 48000 | U8: 44000 | V8: =MAX(T8:U8) -> 48000 | W8: =(V8*100)/$T$4 -> 43.63636364 | X8: =E8+O8+S8+W8 -> 1100.064935 | Y8: 3
